bitfinex-derivatives/quotes_SOLF0:USTF0_20230901
["timestamp","ask_amount","ask_price","bid_price","bid_amount"]
[1693526401595,0.71740485,19.723,19.719,0.75164712]
[1693526409400,0.71740485,19.723,19.702,500.0]
[1693526409699,0.71740485,19.723,19.703,4.0565913]
[1693526410701,500.0,19.72,19.692,500.0]
[1693526411001,0.45454546,19.719,19.693,4.0604498]
[1693526411300,0.45454546,19.719,19.694,4.0604498]
[1693526411502,0.45454546,19.719,19.693,4.0604498]
[1693526411698,0.45454546,19.719,19.694,4.0604498]
[1693526411893,0.45454546,19.719,19.695,4.0604498]
[1693526412096,0.45454546,19.719,19.711,0.73159842]
[1693526412296,25.35754,19.718,19.711,0.73159842]
[1693526412497,500.0,19.711,19.682,500.0]
[1693526412695,0.45454546,19.71,19.683,4.06082944]
[1693526413097,0.68542333,19.708,19.683,4.06082944]
[1693526413301,0.45454546,19.707,19.683,4.06082944]
[1693526414801,0.45454546,19.706,19.683,4.06082944]
[1693526415000,0.45454546,19.71,19.683,4.06082944]
[1693526415196,0.45454546,19.71,19.693,0.2791163]
[1693526416399,25.35754,19.718,19.693,0.2791163]
[1693526416599,0.74399726,19.697,19.693,4.33994574]
[1693526417006,0.45454546,19.72,19.693,4.33994574]
[1693526417211,20.58324546,19.72,19.693,4.33994574]
[1693526417404,0.45454546,19.719,19.711,0.06128483]
[1693526417710,20.1287,19.72,19.711,0.06128483]
[1693526422207,397.7352914,19.744,19.712,500.0]
[1693526422208,0.45454546,19.738,19.712,500.0]
[1693526422408,0.45454546,19.737,19.712,500.0]
[1693526425009,0.45454546,19.737,19.712,521.15192432]
[1693526425710,500.0,19.731,19.712,21.15192432]
[1693526425913,29.08464678,19.73,19.711,0.06128483]
[1693526426108,0.45454546,19.729,19.711,0.06128483]
[1693526430119,0.82125694,19.722,19.711,0.06128483]
[1693526431117,500.0,19.721,19.692,500.0]
[1693526431312,0.45454546,19.72,19.692,500.0]
[1693526431617,0.45454546,19.72,19.693,4.06163967]
[1693526431811,0.45454546,19.72,19.715,0.74590806]
[1693526432314,0.45454546,19.72,19.692,500.0]
[1693526432511,0.45454546,19.72,19.697,0.06132839]
[1693526436513,0.69861637,19.71,19.707,0.27546653]
[1693526437417,29.36219372,19.712,19.697,0.06132839]
[1693526439321,0.76094736,19.706,19.697,0.06132839]
[1693526441029,0.45454546,19.705,19.697,0.06132839]
[1693526448338,15.23,19.704,19.697,0.06132839]
[1693526450332,15.68454546,19.705,19.697,0.06132839]
[1693526452437,15.23,19.704,19.697,0.06132839]
[1693526454739,15.68454546,19.705,19.697,0.06132839]
[1693526455039,0.45454546,19.705,19.697,0.06132839]
[1693526455233,15.23,19.704,19.697,0.06132839]
[1693526460346,15.23,19.704,19.695,122.19]
[1693526461443,15.23,19.706,19.695,122.19]
[1693526461643,0.45454546,19.705,19.695,122.19]
[1693526461838,122.19,19.708,19.695,122.19]
[1693526461839,15.23,19.706,19.695,122.19]
[1693526462045,0.45454546,19.705,19.695,122.19]
[1693526462339,0.82432633,19.701,19.695,122.19]
[1693526471247,15.23,19.7,19.692,122.19]
[1693526472056,122.19,19.705,19.692,122.19]
[1693526472958,0.83249939,19.698,19.692,122.19]
[1693526473151,15.23,19.697,19.692,122.19]
[1693526475456,0.83249939,19.698,19.692,122.19]
[1693526479562,15.23,19.697,19.688,122.19]
[1693526479758,15.23,19.694,19.682,122.19]
[1693526483156,122.19,19.695,19.679,162.58796953]
[1693526483356,122.19,19.709,19.694,122.19]
[1693526483562,20.7302,19.704,19.694,122.19]
[1693526489465,0.77520402,19.701,19.694,122.19]
[1693526491967,0.77520402,19.701,19.699,122.19]
[1693526492466,0.77520402,19.701,19.699,122.25132217]
[1693526494862,15.23,19.72,19.704,488.76]
[1693526495069,21.0121,19.719,19.709,122.19]
[1693526495875,15.23,19.724,19.713,122.19]
[1693526496364,15.23,19.727,19.718,122.19]
[1693526496869,15.23,19.737,19.724,122.19]
[1693526497173,21.0121,19.737,19.732,122.19]
[1693526498770,0.72226935,19.736,19.725,122.19]
[1693526499668,122.19,19.737,19.725,122.19]
[1693526500675,0.71432141,19.732,19.725,122.19]
[1693526502275,0.71432141,19.732,19.713,0.45454546]
[1693526502469,0.71432141,19.732,19.724,223.36]
[1693526503272,251.24197946,19.738,19.724,223.36]
[1693526503773,27.88197946,19.738,19.727,223.36]
[1693526505077,27.88197946,19.738,19.729,223.36]
[1693526506581,27.88197946,19.738,19.726,223.36]
[1693526506875,15.23,19.73,19.717,223.36]
[1693526511975,223.36,19.732,19.719,223.36]
[1693526512179,723.36,19.732,19.719,223.36]
[1693526512375,15.21,19.73,19.719,223.36]
[1693526516380,223.36,19.729,19.715,223.36]
[1693526517080,223.36,19.72,19.706,223.36]
[1693526517484,20.2912,19.719,19.706,223.36]
[1693526518689,20.2912,19.719,19.7,0.45454546]
[1693526518690,20.2912,19.719,19.709,223.36]
[1693526520185,20.2912,19.719,19.712,223.36]
[1693526520387,223.36,19.729,19.716,223.36]
[1693526520581,15.21,19.727,19.716,223.36]
[1693526521883,15.21,19.727,19.719,223.36]
[1693526524886,15.21,19.727,19.716,223.36]
[1693526526281,15.21,19.727,19.718,223.36]
[1693526526481,15.21,19.727,19.72,223.36]
[1693526528290,223.36,19.734,19.72,223.36]
[1693526528291,15.21,19.733,19.72,223.36]
[1693526528490,251.24197946,19.738,19.723,223.36]
[1693526528690,29.29595477,19.737,19.723,223.36]
[1693526528891,223.36,19.735,19.721,223.36]
[1693526532297,0.83243447,19.73,19.725,223.36]
[1693526533404,27.88197946,19.738,19.728,223.36]
[1693526534814,27.88197946,19.738,19.731,223.36]
[1693526535204,258.6064,19.744,19.731,223.81454546]
[1693526535407,35.2464,19.744,19.733,223.36]
[1693526538807,15.2,19.742,19.73,0.51577127]
[1693526539105,22.98260096,19.748,19.73,0.51577127]
[1693526539106,15.2,19.755,19.732,500.0]
[1693526539311,21.2082,19.753,19.743,223.36]
[1693526540104,223.36,19.757,19.743,223.36]
[1693526541208,243.6519,19.76,19.747,223.36]
[1693526541414,9.30497831,19.759,19.747,223.36]
[1693526543110,243.6519,19.76,19.747,223.36]
[1693526544913,9.30457038,19.759,19.749,223.36]
[1693526545316,9.30457038,19.759,19.752,223.36]
[1693526545516,20.2919,19.76,19.754,223.36]
[1693526546706,28.63010132,19.764,19.754,223.36]
[1693526546910,9.30429354,19.763,19.754,223.36]
[1693526547210,36.2833,19.767,19.754,223.36]
[1693526547211,9.30429354,19.762,19.754,223.36]
[1693526547407,9.30429354,19.761,19.754,223.36]
[1693526547611,63.02383644,19.767,19.754,223.36]
[1693526547808,9.30425245,19.766,19.754,223.36]
[1693526551914,9.30425245,19.766,19.757,223.36]
[1693526555123,0.73956185,19.763,19.757,223.36]
[1693526556022,0.73956185,19.763,19.759,223.36]
[1693526557226,47.82383644,19.767,19.759,223.36]
[1693526557522,9.30137601,19.766,19.759,223.36]
[1693526558225,15.2,19.775,19.763,223.36]
[1693526558423,15.2,19.773,19.766,223.36]
[1693526558623,9.30095539,19.772,19.766,223.36]
[1693526558820,9.30095539,19.771,19.766,223.36]
[1693526559021,9.30095539,19.778,19.766,223.36]
[1693526559221,15.2,19.776,19.766,223.36]
[1693526559421,9.30095539,19.775,19.766,223.36]
[1693526559621,15.2,19.773,19.766,223.36]
[1693526559922,9.30095539,19.772,19.766,223.36]
[1693526560122,9.30095539,19.771,19.766,223.36]
[1693526560427,9.30095539,19.77,19.766,223.36]
[1693526560723,9.30095539,19.769,19.766,223.36]
[1693526560924,22.98260096,19.778,19.766,223.36]
[1693526561223,15.2,19.776,19.766,223.36]
[1693526561423,9.30100396,19.775,19.766,223.36]
[1693526561623,15.2,19.773,19.766,223.36]
[1693526561825,9.30100396,19.772,19.766,223.36]
[1693526562025,9.30100396,19.771,19.766,223.36]
[1693526562222,9.30100396,19.77,19.766,223.36]
[1693526562519,15.2,19.776,19.766,223.36]
[1693526562718,9.30095101,19.775,19.766,223.36]
[1693526564623,32.28355197,19.775,19.766,223.36]
[1693526564928,15.2,19.773,19.766,223.36]
[1693526565129,10.00071955,19.772,19.766,223.36]
[1693526565327,9.30095101,19.771,19.766,223.36]
[1693526566519,9.30095101,19.771,19.766,263.83749114]
[1693526567218,9.30095101,19.771,19.767,121.32]
[1693526568930,9.30095101,19.771,19.766,121.32]
[1693526569531,9.30095101,19.771,19.767,0.06111111]
[1693526570130,121.32,19.769,19.763,0.12224667]
[1693526570431,151.84116197,19.769,19.763,0.12224667]
[1693526570822,30.52116197,19.769,19.763,0.12224667]
[1693526571533,144.30260096,19.778,19.765,121.32]
[1693526571726,121.32,19.778,19.765,121.32]
[1693526572133,0.79954828,19.768,19.765,121.32]
[1693526572330,0.79954828,19.768,19.765,222.44]
[1693526573031,22.98260096,19.776,19.765,222.44]
[1693526573232,9.29722903,19.775,19.765,222.44]
[1693526573623,32.27982999,19.775,19.765,222.44]
[1693526573822,22.98260096,19.775,19.765,222.44]
[1693526574029,0.69388561,19.768,19.765,222.44]
[1693526574832,22.98260096,19.775,19.765,222.44]
[1693526575529,98.94189702,19.775,19.765,222.44]
[1693526575736,0.70246198,19.768,19.765,222.44]
[1693526576833,22.98260096,19.775,19.765,222.44]
[1693526577224,22.98260096,19.775,19.763,0.12224667]
[1693526577431,538.15260096,19.773,19.763,0.12224667]
[1693526577638,15.17,19.767,19.763,0.12224667]
[1693526579838,15.17,19.767,19.763,0.87181602]
[1693526580737,15.17,19.767,19.761,36.87391515]
[1693526580931,15.17,19.767,19.76,222.44]
[1693526582840,0.70533667,19.768,19.762,222.44]
[1693526583239,15.17,19.767,19.762,222.44]
[1693526583541,15.17,19.767,19.76,39.70055639]
[1693526583741,15.17,19.767,19.759,222.62340669]
[1693526585543,15.17,19.767,19.759,263.65122661]
[1693526585740,15.17,19.767,19.759,41.21122661]
[1693526586038,237.61,19.767,19.759,0.18340669]
[1693526589237,15.17,19.767,19.759,0.18340669]
[1693526596146,21.71393667,19.768,19.759,0.18340669]
[1693526597246,0.70533667,19.768,19.759,0.18340669]
[1693526597450,0.70533667,19.768,19.762,222.44]
[1693526599247,0.70533667,19.768,19.759,222.62340669]
[1693526601750,0.70533667,19.768,19.762,222.44]
[1693526602453,0.70533667,19.768,19.763,121.36]
[1693526606857,0.70533667,19.768,19.765,121.36]
[1693526607058,21.6531,19.775,19.765,121.36]
[1693526612067,21.6531,19.775,19.764,121.36]
[1693526613668,15.18,19.767,19.76,0.45454546]
[1693526613871,15.18,19.767,19.759,39.99595346]
[1693526614060,15.18,19.767,19.757,121.36]
[1693526616369,15.18,19.763,19.752,121.36]
[1693526616573,15.18,19.763,19.753,0.45454546]
[1693526619265,15.18,19.763,19.76,0.18339737]
[1693526622577,15.18,19.763,19.76,0.08502546]
[1693526622979,15.18,19.763,19.756,0.24457876]
[1693526626575,15.18,19.763,19.753,0.45454546]
[1693526627675,0.06113273,19.76,19.753,0.45454546]
[1693526629884,0.06113273,19.76,19.754,121.36]
[1693526633385,0.06113273,19.76,19.756,0.12228991]
[1693526633974,0.06113273,19.76,19.757,121.36]
[1693526634182,21.4289,19.766,19.757,121.36]
[1693526643082,0.06113262,19.76,19.757,121.36]
[1693526645585,247.28421777,19.772,19.754,121.36]
[1693526645586,247.28421777,19.772,19.759,121.36]
[1693526645785,121.36,19.773,19.76,0.45454546]
[1693526646086,19.9534,19.772,19.76,0.45454546]
[1693526648586,19.9534,19.772,19.76,0.51567796]
[1693526648788,19.9534,19.772,19.761,0.45454546]
[1693526651191,19.9534,19.772,19.764,121.36]
[1693526651391,19.9534,19.772,19.764,78.85779053]
[1693526652288,19.9534,19.772,19.767,109.2]
[1693526657997,109.2,19.771,19.764,109.2]
[1693526658700,109.89413267,19.771,19.764,109.2]
[1693526662004,0.69413267,19.771,19.766,109.2]
[1693526663000,19.9534,19.772,19.766,109.2]
[1693526663903,0.70430192,19.77,19.766,109.2]
[1693526672109,0.70430192,19.77,19.768,109.2]
[1693526673013,19.9534,19.772,19.768,109.2]
[1693526674109,20.69208063,19.772,19.768,109.2]
[1693526676010,20.69208063,19.772,19.765,109.2]
[1693526677009,19.9534,19.772,19.765,109.2]
[1693526681911,19.9534,19.772,19.767,109.2]
[1693526684520,109.2,19.778,19.77,109.2]
[1693526684715,109.2,19.78,19.773,109.2]
[1693526689423,20.5102,19.782,19.776,109.2]
[1693526692025,20.5102,19.782,19.777,109.2]
[1693526696535,15.17,19.786,19.78,109.2]
[1693526699936,109.2,19.787,19.78,109.2]
[1693526700336,15.17,19.786,19.78,109.2]
[1693526709544,15.17,19.786,19.779,109.2]
[1693526711949,109.2,19.788,19.781,109.2]
[1693526714648,15.17,19.79,19.783,109.2]
[1693526718244,109.2,19.791,19.783,109.2]
[1693526718452,20.0988,19.792,19.786,109.2]
[1693526730455,20.0988,19.792,19.777,109.2]
[1693526730456,15.16,19.786,19.777,109.2]
[1693526730657,109.2,19.783,19.774,109.2]
[1693526731054,109.2,19.786,19.778,109.2]
[1693526732057,15.16,19.786,19.779,109.2]
[1693526736372,109.2,19.79,19.782,109.2]
[1693526736771,20.0988,19.792,19.786,109.2]
[1693526742067,20.0988,19.792,19.788,109.2]
[1693526742578,15.16,19.795,19.788,109.2]
[1693526742768,34.9266,19.795,19.788,109.2]
[1693526747782,19.7666,19.795,19.791,109.2]
[1693526748280,15.16,19.798,19.791,109.2]
[1693526749181,109.2,19.798,19.79,109.2]
[1693526751474,130.5993,19.8,19.792,109.2]
[1693526756390,15.16,19.798,19.79,109.2]
[1693526760692,15.16,19.795,19.787,109.2]
[1693526770900,109.98865561,19.796,19.79,109.2]
[1693526770901,0.78865561,19.796,19.79,109.2]
[1693526771804,109.2,19.798,19.79,109.2]
[1693526772000,109.2,19.799,19.791,109.2]
[1693526781108,15.15,19.798,19.791,109.2]
[1693526782006,109.2,19.797,19.789,109.2]
[1693526789522,109.2,19.793,19.785,109.2]
[1693526789713,109.2,19.787,19.779,109.2]
[1693526795216,109.2,19.79,19.782,109.2]
[1693526800630,0.79776741,19.788,19.782,109.2]
[1693526807933,109.2,19.786,19.779,109.2]
[1693526810840,0.8208042,19.784,19.779,109.2]
[1693526813438,110.0208042,19.784,19.776,109.2]
[1693526814741,109.2,19.783,19.775,109.2]
[1693526818739,0.8208042,19.784,19.778,109.2]
[1693526819643,19.9722,19.785,19.778,109.2]
[1693526821439,109.2,19.782,19.774,109.2]
[1693526821640,109.2,19.776,19.768,109.2]
[1693526822040,109.2,19.775,19.767,109.2]
[1693526823945,109.2,19.777,19.769,109.2]
[1693526824245,130.1373,19.781,19.773,109.2]
[1693526827643,0.80357539,19.779,19.773,109.2]
[1693526833751,0.80357539,19.779,19.776,109.2]
[1693526834747,109.2,19.783,19.776,109.2]
[1693526835444,15.17,19.776,19.769,109.2]
[1693526836457,0.8173216,19.774,19.769,109.2]
[1693526841157,0.8173216,19.774,19.771,0.1221961]
[1693526843657,0.8173216,19.774,19.773,109.2]
[1693526846055,0.8173216,19.774,19.772,109.2]
[1693526849257,0.06108584,19.775,19.773,109.2]
[1693526849458,21.86664546,19.782,19.771,0.1221961]
[1693526849459,21.4121,19.782,19.774,109.2]
[1693526849761,109.2,19.783,19.775,109.2]
[1693526849963,109.2,19.786,19.779,109.2]
[1693526852055,109.2,19.787,19.78,109.2]
[1693526862060,109.2,19.786,19.779,109.2]
[1693526874779,109.2,19.787,19.78,109.2]
[1693526877984,0.70230601,19.785,19.782,0.72853296]
[1693526892097,0.70230601,19.785,19.782,109.92853296]
[1693526895594,0.70230601,19.785,19.782,0.72853296]
[1693526899201,0.70230601,19.785,19.775,0.06108543]
[1693526899395,109.2,19.783,19.775,109.26108543]
[1693526906106,61.46721944,19.789,19.775,0.06108543]
[1693526906107,15.17,19.779,19.775,0.06108543]
[1693526906308,61.46721944,19.789,19.771,0.1221953]
[1693526906309,109.2,19.776,19.771,0.1221953]
[1693526906506,109.2,19.774,19.771,0.1221953]
[1693526906902,109.2,19.778,19.771,0.1221953]
[1693526910213,0.81494655,19.776,19.771,0.1221953]
[1693526911911,15.98494655,19.776,19.771,0.1221953]
[1693526912115,125.18494655,19.776,19.771,0.1221953]
[1693526918019,109.2,19.772,19.763,0.24448843]
[1693526918220,109.2,19.769,19.763,0.24448843]
[1693526919223,109.2,19.771,19.763,109.44448843]
[1693526921920,15.17,19.776,19.763,109.44448843]
[1693526921921,109.2,19.772,19.763,109.44448843]
[1693526922522,109.2,19.775,19.767,109.2]
[1693526925321,0.76571217,19.773,19.767,109.2]
[1693526931032,0.76571217,19.773,19.767,109.26111014]
[1693526934832,0.76571217,19.773,19.768,0.75485467]
[1693526941933,0.76571217,19.773,19.768,109.95485467]
[1693526955843,109.2,19.772,19.768,0.75485467]
[1693526961949,0.76571217,19.773,19.768,0.75485467]
[1693526962251,109.2,19.783,19.772,109.2]
[1693526962441,109.2,19.783,19.775,109.2]
[1693526968965,109.2,19.783,19.777,0.81246196]
[1693526969469,0.76036295,19.781,19.777,0.81246196]
[1693526978768,109.2,19.787,19.78,109.2]
[1693526979072,0.45454546,19.796,19.777,0.81246196]
[1693526979073,109.2,19.796,19.786,109.2]
[1693526979270,15.18,19.795,19.786,109.2]
[1693526980071,109.2,19.793,19.784,109.2]
[1693526980268,109.2,19.79,19.782,109.2]
[1693526981974,109.2,19.789,19.781,109.2]
[1693526985378,109.2,19.789,19.783,0.80051767]
[1693526992676,0.7701966,19.788,19.783,0.80051767]
[1693527003581,109.2,19.785,19.783,0.80051767]
[1693527003778,0.7701966,19.788,19.774,109.2]
[1693527003779,109.2,19.784,19.774,109.2]
[1693527003976,0.0610669,19.781,19.774,109.2]
[1693527007290,0.0610669,19.781,19.777,0.12215821]
[1693527012099,109.2,19.779,19.777,0.12215821]
[1693527013298,0.0610669,19.781,19.777,0.12215821]
[1693527016497,109.2,19.787,19.78,109.2]
[1693527016695,109.2,19.79,19.782,109.2]
[1693527019602,20.2661,19.792,19.786,109.2]
[1693527025207,20.2661,19.792,19.787,109.2]
[1693527026306,0.71549002,19.791,19.788,0.81271858]
[1693527034906,109.2,19.797,19.79,109.2]
[1693527037909,15.16,19.79,19.783,0.06106052]
[1693527038104,109.2,19.789,19.783,0.06106052]
[1693527038615,109.2,19.786,19.783,0.06106052]
[1693527038911,109.2,19.784,19.779,0.12214547]
[1693527039116,15.16,19.786,19.779,0.12214547]
[1693527039117,109.2,19.783,19.779,0.12214547]
[1693527042213,121.21,19.785,19.779,0.12214547]
[1693527063933,121.21,19.783,19.779,0.12214547]
[1693527065034,121.21,19.783,19.775,0.18325487]
[1693527065239,121.21,19.783,19.775,40.26010016]
[1693527065537,121.21,19.783,19.775,0.18325487]
[1693527067338,109.12,19.781,19.775,0.18325487]
[1693527070242,15.17,19.779,19.775,0.18325487]
[1693527075343,109.12,19.777,19.775,0.18325487]
[1693527082044,109.12,19.776,19.775,0.18325487]
[1693527113480,109.12,19.777,19.775,0.18325487]
[1693527115275,0.795554,19.778,19.775,0.18325487]
[1693527121880,109.12,19.776,19.775,0.18325487]
[1693527127583,109.57454546,19.776,19.771,0.24438872]
[1693527127782,109.12,19.772,19.761,109.12]
[1693527127987,109.12,19.769,19.764,44.88796983]
[1693527128178,109.12,19.769,19.764,40.1778676]
[1693527132195,109.12,19.768,19.764,40.1778676]
[1693527137898,109.12,19.768,19.76,109.12]
[1693527138095,109.12,19.768,19.761,4.71156129]
[1693527138292,109.12,19.768,19.761,36.44594345]
[1693527138592,109.12,19.768,19.762,4.71156129]
[1693527142298,109.18109757,19.771,19.764,109.12]
[1693527155705,109.18109757,19.771,19.764,148.9136267]
[1693527161508,15.18,19.786,19.765,504.707628]
[1693527161716,109.12,19.776,19.769,109.12]
[1693527162213,109.12,19.777,19.77,109.12]
[1693527166309,109.12,19.777,19.774,0.06108818]
[1693527167020,109.12,19.775,19.774,0.06108818]
[1693527169421,109.12,19.775,19.77,0.12220081]
[1693527171115,109.12,19.772,19.77,0.12220081]
[1693527171617,109.12,19.771,19.77,0.12220081]
[1693527172015,109.12,19.771,19.766,0.1833379]
[1693527172223,109.12,19.768,19.766,0.1833379]
[1693527177124,109.12,19.769,19.766,0.1833379]
[1693527202043,109.12,19.768,19.766,0.1833379]
[1693527207342,109.12,19.767,19.766,0.1833379]
[1693527231759,124.3,19.767,19.762,0.24449945]
[1693527231956,109.12,19.763,19.762,0.24449945]
[1693527236762,35.7305,19.767,19.762,0.24449945]
[1693527236966,109.12,19.766,19.762,0.24449945]
[1693527240271,0.8112147,19.768,19.762,109.36449945]
[1693527242572,0.8112147,19.768,19.762,109.12]
[1693527243577,0.06111261,19.766,19.762,109.12]
[1693527249177,0.06111261,19.766,19.762,148.93799797]
[1693527271990,0.06111261,19.766,19.762,39.81799797]
[1693527272200,0.06111261,19.766,19.761,109.12]
[1693527272498,0.06111261,19.766,19.761,153.46045941]
[1693527282005,0.06111261,19.766,19.761,44.34045941]
[1693527283806,0.06111261,19.766,19.761,84.9875777]
[1693527285311,109.12,19.764,19.761,44.34045941]
[1693527285605,0.06111261,19.766,19.756,39.83822042]
[1693527285606,109.12,19.762,19.756,39.83822042]
[1693527285806,109.12,19.758,19.75,109.12]
[1693527286001,109.12,19.758,19.751,4.71644789]
[1693527286207,109.12,19.758,19.751,41.40451001]
[1693527286405,109.12,19.758,19.752,4.71644789]
[1693527292114,0.83350225,19.757,19.752,4.71644789]
[1693527297617,0.83350225,19.757,19.755,500.0]
[1693527297817,109.12,19.765,19.756,113.83260444]
[1693527298017,0.06111261,19.766,19.76,109.12]
[1693527298319,109.12,19.771,19.763,152.80916137]
[1693527298518,109.12,19.777,19.769,109.12]
[1693527299021,109.12,19.78,19.773,109.12]
[1693527302016,109.12,19.782,19.774,109.12]
[1693527302321,109.12,19.779,19.771,109.12]
[1693527306025,109.12,19.776,19.768,109.12]
[1693527306224,0.45454546,19.784,19.764,542.62756804]
[1693527306225,109.12,19.773,19.766,109.12]
[1693527306421,0.45454546,19.784,19.769,109.12]
[1693527306622,109.12,19.776,19.769,109.12]
[1693527311024,109.12,19.776,19.764,542.62756804]
[1693527311025,0.7964137,19.774,19.772,109.12]
[1693527312020,0.7964137,19.774,19.771,0.7894853]
[1693527312220,15.18,19.776,19.77,109.12]
[1693527314735,109.57454546,19.775,19.767,109.12]
[1693527315030,15.18,19.773,19.767,109.12]
[1693527320838,0.45454546,19.782,19.763,40.3397371]
[1693527321138,109.12,19.771,19.764,109.12]
[1693527330835,109.12,19.771,19.764,148.67510616]
[1693527332037,109.12,19.772,19.764,148.67510616]
[1693527333743,0.06110879,19.767,19.764,148.67510616]
[1693527338742,23.47623523,19.802,19.774,500.0]
[1693527338949,109.12,19.795,19.784,109.12]
[1693527339342,15.18,19.79,19.782,109.12]
[1693527339842,109.12,19.795,19.785,109.12]
[1693527340148,20.0548,19.802,19.794,109.12]
[1693527340646,109.12,19.803,19.794,109.12]
[1693527340945,109.12,19.8,19.791,109.12]
[1693527341353,15.18,19.795,19.787,109.12]
[1693527341540,15.18,19.798,19.79,109.12]
[1693527341946,109.12,19.797,19.788,109.12]
[1693527342349,121.04,19.8,19.786,121.04]
[1693527342642,121.04,19.8,19.787,0.45454546]
[1693527343039,15.18,19.798,19.787,0.45454546]
[1693527351157,15.16,19.795,19.787,0.45454546]
[1693527351453,121.04,19.794,19.784,41.06208984]
[1693527351652,121.04,19.794,19.78,121.04]
[1693527355756,15.16,19.795,19.782,121.04]
[1693527360465,20.3802,19.797,19.785,121.04]
[1693527360964,121.04,19.798,19.785,121.04]
[1693527361166,160.80161615,19.798,19.785,121.04]
[1693527366567,121.04,19.795,19.782,121.04]
[1693527367262,108.99,19.793,19.785,108.99]
[1693527375780,108.99,19.793,19.787,0.76809033]
[1693527376088,15.16,19.79,19.787,0.76809033]
[1693527394697,0.81108924,19.791,19.787,0.76809033]
[1693527394899,15.16,19.812,19.79,108.99]
[1693527395098,108.99,19.799,19.79,108.99]
[1693527395301,15.16,19.798,19.79,108.99]
[1693527395806,15.16,19.795,19.788,21.61864546]
[1693527395999,15.16,19.795,19.788,0.45454546]
[1693527408213,108.99,19.796,19.788,0.45454546]
[1693527408511,15.16,19.798,19.79,108.99]
[1693527411912,108.99,19.798,19.789,136.30384977]
[1693527412220,108.99,19.798,19.791,0.06103356]
[1693527416118,15.16,19.798,19.791,109.05103356]
[1693527422626,15.16,19.798,19.791,108.99]
[1693527424628,20.443,19.807,19.795,108.99]
[1693527424829,20.443,19.807,19.798,108.99]
[1693527425025,39.48686868,19.809,19.798,108.99]
[1693527425026,108.99,19.806,19.798,108.99]
[1693527425324,271.58986351,19.812,19.803,108.99]
[1693527425529,108.99,19.812,19.803,108.99]
[1693527425919,108.99,19.809,19.8,108.99]
[1693527431024,15.16,19.816,19.804,108.99]
[1693527431025,108.99,19.812,19.804,108.99]
[1693527431226,108.99,19.815,19.807,108.99]
[1693527434932,15.16,19.816,19.81,108.99]
[1693527435136,108.99,19.814,19.796,41.10876049]
[1693527435335,108.99,19.814,19.806,108.99]
[1693527436037,15.16,19.816,19.809,108.99]
[1693527436231,15.16,19.816,19.809,109.74671603]
[1693527436629,124.15,19.81,19.809,0.75671603]
[1693527436831,15.16,19.809,19.796,41.10876049]
[1693527437037,15.16,19.809,19.802,108.99]
[1693527438642,0.79248588,19.807,19.804,0.78424041]
[1693527451852,108.99,19.814,19.806,108.99]
[1693527453753,0.06097772,19.809,19.806,108.99]
[1693527454555,0.06097772,19.809,19.808,0.75747906]
[1693527458755,555.94112007,19.823,19.808,0.75747906]
[1693527458756,15.15,19.819,19.808,0.75747906]
[1693527458955,108.99,19.819,19.811,108.99]